bitfinex-derivatives/quotes_BNBF0:USTF0_20250303
["timestamp","ask_amount","ask_price","bid_price","bid_amount"]
[1741035677429,1.8155022,576.58,574.44,1.29429039]
[1741035677430,1.27427585,576.41,574.44,1.29429039]
[1741035677624,1.27427585,576.41,574.45,0.3198336]
[1741035677819,1.27427585,576.41,574.46,0.3198336]
[1741035678124,1.27427585,576.41,574.44,1.29429039]
[1741035678125,1.27427585,576.41,574.47,0.3198336]
[1741035678326,1.81528912,576.4,574.48,0.3198336]
[1741035678526,2.69920699,576.4,574.49,0.3198336]
[1741035678730,4.37081077,576.4,574.45,0.3198336]
[1741035679027,2.55552165,576.39,574.46,0.3198336]
[1741035679229,0.88391787,576.39,574.47,0.3198336]
[1741035679427,0.88391787,576.39,574.48,0.3198336]
[1741035679623,0.88391787,576.39,574.49,0.3198336]
[1741035679824,0.88391787,576.39,574.5,0.3198336]
[1741035680024,0.88391787,576.39,574.51,0.3198336]
[1741035680226,0.88391787,576.39,574.52,0.3198336]
[1741035680526,0.88391787,576.39,574.53,0.3198336]
[1741035680829,0.88391787,576.39,574.64,1.29429039]
[1741035681022,0.88391787,576.39,574.65,0.3198336]
[1741035681228,0.88391787,576.56,574.66,0.3198336]
[1741035681427,1.67160378,576.57,574.67,0.3198336]
[1741035681630,1.27427585,576.58,574.68,0.3198336]
[1741035681929,1.27427585,576.58,574.69,0.3198336]
[1741035682129,1.27427585,576.58,574.7,0.3198336]
[1741035682329,1.27427585,576.58,574.71,0.3198336]
[1741035682826,1.27427585,576.58,574.72,0.3198336]
[1741035683128,1.27427585,576.58,574.73,0.3198336]
[1741035683527,1.27427585,576.58,574.74,0.3198336]
[1741035683827,1.27427585,576.58,574.75,0.3198336]
[1741035684033,1.27427585,576.58,574.76,0.3198336]
[1741035684225,2.55651227,576.71,574.49,0.72441501]
[1741035684226,2.55651227,576.71,574.79,1.29429039]
[1741035684425,1.67261787,576.71,574.8,0.3198336]
[1741035684626,1.27427585,576.72,574.81,0.3198336]
[1741035684826,1.27427585,576.72,574.82,0.3198336]
[1741035685131,1.27427585,576.72,574.83,0.3198336]
[1741035685329,1.27427585,576.72,574.84,0.3198336]
[1741035685526,1.27427585,576.72,574.85,0.3198336]
[1741035685730,1.27427585,576.72,574.86,0.3198336]
[1741035685930,1.27427585,576.72,574.87,0.3198336]
[1741035686132,1.27427585,576.72,574.88,0.3198336]
[1741035686325,1.27427585,576.72,574.89,0.3198336]
[1741035686530,1.81410624,576.71,574.9,0.3198336]
[1741035686726,3.48595064,576.71,574.91,0.3198336]
[1741035686930,3.48595064,576.71,574.92,0.3198336]
[1741035686931,2.55409593,576.7,574.92,0.3198336]
[1741035687127,2.55409593,576.7,574.93,0.3198336]
[1741035687329,2.55409593,577.11,574.94,0.3198336]
[1741035687628,0.88325698,577.11,574.95,0.3198336]
[1741035687831,1.27427585,577.12,574.96,0.3198336]
[1741035688132,1.27427585,577.12,574.97,0.3198336]
[1741035688326,1.27427585,577.12,574.98,0.3198336]
[1741035688526,1.27427585,577.12,574.78,1.29429039]
[1741035688730,1.27427585,577.12,574.79,0.31946361]
[1741035688929,1.27427585,577.12,574.8,0.31946361]
[1741035689130,1.27427585,577.12,574.78,1.29429039]
[1741035689131,1.27427585,577.12,574.81,0.31946361]
[1741035689428,1.27427585,577.12,574.82,0.31946361]
[1741035689634,1.81370441,577.11,574.83,0.31946361]
[1741035689830,1.81370441,577.11,574.84,0.31946361]
[1741035690030,1.81370441,577.11,574.85,0.31946361]
[1741035690231,1.81370441,577.11,574.86,0.31943413]
[1741035690433,1.81370441,577.11,574.87,0.31943413]
[1741035690629,1.81370441,577.11,574.88,0.31943413]
[1741035690830,1.81370441,577.11,574.8,0.31943413]
[1741035691137,1.81370441,577.11,574.81,0.31943413]
[1741035691337,1.81370441,577.11,574.82,0.31943413]
[1741035691635,1.81370441,577.11,574.83,0.31943413]
[1741035691830,1.81370441,577.11,574.84,0.31943413]
[1741035692036,1.81370441,577.11,574.85,0.31943413]
[1741035692236,1.81370441,577.11,574.86,0.31943413]
[1741035692436,1.81370441,577.11,574.8,0.31943413]
[1741035692638,1.81370441,577.11,574.81,0.31943413]
[1741035692936,1.81370441,577.11,574.82,0.31943413]
[1741035693136,1.81370441,577.11,574.83,0.31943413]
[1741035693336,1.81370441,577.11,574.84,0.31943413]
[1741035693637,1.81370441,577.11,574.85,0.31943413]
[1741035693933,1.81370441,577.11,574.86,0.31943413]
[1741035694137,1.81370441,577.11,574.87,0.31943413]
[1741035694340,1.81370441,577.11,574.88,0.31943413]
[1741035694537,1.81370441,577.11,574.89,0.31943413]
[1741035694739,1.81370441,577.11,574.9,0.31943413]
[1741035694934,1.81370441,577.11,574.91,0.31943413]
[1741035695139,1.81370441,577.11,574.65,1.81397228]
[1741035695140,1.81370441,577.11,574.92,0.31943413]
[1741035695340,1.81370441,577.11,574.93,0.31943413]
[1741035695539,1.81370441,577.11,574.94,0.31943413]
[1741035695738,1.81370441,577.11,574.95,0.31943413]
[1741035695939,1.81370441,577.11,574.96,0.31943413]
[1741035696136,2.54511813,577.82,574.97,0.31943413]
[1741035696337,2.54511813,577.81,574.98,0.31943413]
[1741035696541,1.66502529,577.8,574.99,0.31943413]
[1741035696736,1.66502529,577.79,575.0,0.31943413]
[1741035696937,1.66502529,577.79,575.01,0.31943413]
[1741035697137,2.54511813,577.8,575.02,0.31943413]
[1741035697337,2.54511813,577.8,575.03,0.31943413]
[1741035697541,2.54511813,577.8,575.04,0.31943413]
[1741035697741,1.66502529,577.79,575.05,0.31943413]
[1741035697942,1.6661291,577.78,575.06,0.31943413]
[1741035698142,1.6661291,577.79,575.07,0.31943413]
[1741035698342,1.6661291,577.78,574.77,1.81342088]
[1741035698538,1.6661291,577.77,574.78,0.31932067]
[1741035698743,1.6661291,577.76,574.79,0.31932067]
[1741035699044,1.6661291,577.79,574.8,0.31932067]
[1741035699241,2.54678642,577.8,574.81,0.31932067]
[1741035699440,1.6661291,577.79,574.82,0.31932067]
[1741035699641,1.6661291,577.79,574.77,1.81342088]
[1741035699642,2.54678642,577.8,574.83,0.31932067]
[1741035699836,2.54678642,577.8,574.84,0.31932067]
[1741035700336,0.34622442,577.66,574.86,0.34791079]
[1741035700642,0.34622442,577.66,574.87,0.31932067]
[1741035700842,0.34622442,577.66,574.88,0.31932067]
[1741035701144,0.34622442,577.66,574.89,0.31932067]
[1741035701342,0.34622442,577.66,574.9,0.31932067]
[1741035701541,0.34622442,577.66,574.91,0.31932067]
[1741035701742,0.34622442,577.66,574.92,0.31932067]
[1741035701943,0.34622442,577.66,574.93,0.31932067]
[1741035702143,0.34622442,577.66,574.94,0.31932067]
[1741035702444,1.81236628,577.65,574.95,0.31932067]
[1741035702746,1.81236628,577.65,574.96,0.31932067]
[1741035702940,1.81236628,577.65,574.86,0.34791079]
[1741035702941,1.81236628,577.65,574.97,0.31932067]
[1741035703143,1.81236628,577.65,574.98,0.31932067]
[1741035703345,1.81236628,577.65,575.0,0.34782608]
[1741035703545,1.81236628,577.65,575.01,0.31932067]
[1741035703747,1.81236628,577.65,575.02,0.31932067]
[1741035703940,1.81236628,577.65,575.03,0.31932067]
[1741035704143,1.81236628,577.65,575.04,0.31932067]
[1741035704346,1.81236628,577.65,575.05,0.31932067]
[1741035704645,1.81236628,577.65,575.06,0.31932067]
[1741035704840,1.81236628,577.65,575.07,0.31932067]
[1741035705039,1.81236628,577.65,575.08,0.66709837]
[1741035705245,0.34622442,577.66,575.09,0.31932067]
[1741035705441,1.81246853,577.64,575.1,0.31932067]
[1741035705847,1.81246853,577.64,575.11,0.31932067]
[1741035706048,1.81246853,577.64,575.12,0.31932067]
[1741035706247,0.34630835,577.52,575.13,0.31932067]
[1741035706447,0.34630835,577.52,575.14,0.31932067]
[1741035706649,0.34630835,577.52,575.15,0.31932067]
[1741035706850,0.34630835,577.52,575.16,0.31932067]
[1741035707043,0.34630835,577.52,575.17,0.31932067]
[1741035707247,0.34630835,577.52,575.18,0.31932067]
[1741035707443,0.34630835,577.52,575.19,0.31932067]
[1741035707646,0.34630835,577.52,575.2,0.31932067]
[1741035707848,0.34630835,577.52,575.21,0.31932067]
[1741035708048,0.34630835,577.52,575.22,0.31932067]
[1741035708249,0.34630835,577.52,575.23,0.31932067]
[1741035708452,0.34630835,577.52,575.24,0.31932067]
[1741035708653,0.34630835,577.52,575.25,0.31932067]
[1741035708845,0.34630835,577.52,575.26,0.31932067]
[1741035709045,0.34630835,577.52,575.08,0.3477777]
[1741035709046,0.34630835,577.52,575.27,0.31932067]
[1741035709245,0.34630835,577.52,575.28,0.31932067]
[1741035709454,0.34630835,577.52,575.29,0.31932067]
[1741035709651,0.34630835,577.52,575.3,0.31932067]
[1741035709950,0.34630835,577.52,575.31,0.31932067]
[1741035710157,0.34630835,577.52,575.32,0.31932067]
[1741035710451,0.34630835,577.52,575.33,0.31932067]
[1741035710654,0.34630835,577.52,575.34,0.31932067]
[1741035710960,0.34630835,577.52,575.35,0.31932067]
[1741035711150,0.34630835,577.52,575.36,0.31932067]
[1741035711549,0.34630835,577.52,575.37,0.31932067]
[1741035711747,0.34630835,577.52,575.38,0.31932067]
[1741035711952,0.34630835,577.52,575.39,0.31932067]
[1741035712252,0.34630835,577.52,575.4,0.66690495]
[1741035712452,0.34630835,577.52,575.41,0.31932067]
[1741035712651,0.34630835,577.52,575.42,0.31932067]
[1741035712851,0.34630835,577.52,575.43,0.31932067]
[1741035713044,0.34630835,577.52,575.44,0.31932067]
[1741035713249,0.34630835,577.52,575.45,0.31932067]
[1741035713447,0.34630835,577.52,575.46,0.66686871]
[1741035713650,0.34630835,577.52,575.47,0.31932067]
[1741035713850,0.34630835,577.52,575.48,0.66685663]
[1741035714046,0.34630835,577.52,575.49,0.31932067]
[1741035714253,0.34630835,577.52,575.5,0.31932067]
[1741035714451,0.34630835,577.52,575.51,0.31932067]
[1741035714651,0.34630835,577.52,575.52,0.31932067]
[1741035714852,0.34630835,577.52,575.53,0.31932067]
[1741035715152,0.34630835,577.52,575.54,0.31932067]
[1741035715351,0.34630835,577.52,575.55,0.31932067]
[1741035715656,0.34630835,577.52,575.56,0.31932067]
[1741035715851,0.34630835,577.52,575.57,0.31932067]
[1741035716050,0.34630835,577.52,575.58,0.31932067]
[1741035716253,0.34630835,577.52,575.59,0.31932067]
[1741035716453,0.34630835,577.52,575.6,0.31932067]
[1741035716752,0.34630835,577.52,575.61,0.66677814]
[1741035717052,0.34630835,577.52,575.62,0.31932067]
[1741035717352,0.34630835,577.52,575.63,0.31932067]
[1741035717548,0.34630835,577.52,575.64,0.31932067]
[1741035717751,0.34630835,577.52,575.65,0.31932067]
[1741035717953,0.34630835,577.52,575.66,0.31932067]
[1741035718454,0.34630835,577.52,575.67,0.31932067]
[1741035718846,0.34630835,577.52,575.68,0.31932067]
[1741035719050,0.34630835,577.52,575.62,0.31932067]
[1741035719349,0.34630835,577.52,575.63,0.66676607]
[1741035719548,0.34630835,577.52,575.64,0.66676004]
[1741035719754,0.34630835,577.52,575.65,0.31932067]
[1741035719951,0.34630835,577.52,575.66,0.31932067]
[1741035720147,0.34630835,577.52,575.67,0.31932067]
[1741035720352,0.34630835,577.52,575.68,0.31932067]
[1741035720547,0.34630835,577.52,575.69,0.31932067]
[1741035720747,0.34630835,577.52,575.7,0.31932067]
[1741035720954,0.34630835,577.52,575.71,0.31932067]
[1741035721149,0.34630835,577.52,575.64,0.34743937]
[1741035721150,0.34630835,577.52,575.72,0.31932067]
[1741035721355,0.34630835,577.52,575.73,0.31932067]
[1741035721655,0.34630835,577.52,575.74,0.31903439]
[1741035721955,0.34630835,577.52,575.75,0.31903439]
[1741035722150,0.34630835,577.52,575.65,0.31903439]
[1741035722356,0.34630835,577.52,575.66,0.31903439]
[1741035722656,0.34630835,577.52,575.67,0.31903439]
[1741035722955,0.34630835,577.52,575.68,0.31903439]
[1741035723155,0.34630835,577.52,575.69,0.31903439]
[1741035723358,0.34630835,577.52,575.7,0.31903439]
[1741035723558,0.34630835,577.52,575.64,0.34743937]
[1741035723755,0.34630835,577.52,575.65,0.31900651]
[1741035723954,0.34630835,577.52,575.66,0.31900651]
[1741035724155,0.34630835,577.52,575.67,0.31900651]
[1741035724355,0.34630835,577.52,575.68,0.31900651]
[1741035724558,0.34630835,577.52,575.69,0.31900651]
[1741035724757,0.34630835,577.52,575.7,0.31900651]
[1741035725058,0.34630835,577.52,575.71,0.31900651]
[1741035725258,0.34630835,577.52,575.72,0.31900083]
[1741035725452,0.34630835,577.52,575.65,0.31900083]
[1741035725655,0.34630835,577.52,575.66,0.31900083]
[1741035725957,0.34630835,577.52,575.67,0.31900083]
[1741035726152,0.34630835,577.52,575.68,0.31900083]
[1741035726353,1.8110144,577.51,575.65,0.31900083]
[1741035726557,1.8110144,577.51,575.66,0.31900083]
[1741035726752,1.8110144,577.51,575.67,0.31900083]
[1741035726957,1.8110144,577.51,575.68,0.31900083]
[1741035727158,1.8110144,577.51,575.69,0.31900083]
[1741035727354,1.8110144,577.51,575.7,0.31900083]
[1741035727558,1.8110144,577.51,575.64,0.34743937]
[1741035727559,1.8110144,577.51,575.65,0.31900083]
[1741035727854,1.8110144,577.51,575.66,0.31900083]
[1741035728063,1.8110144,577.51,575.67,0.31900083]
[1741035728359,1.8110144,577.51,575.68,0.31900083]
[1741035728561,1.8110144,577.51,575.69,0.31900083]
[1741035728754,1.8110144,577.51,575.7,0.31900083]
[1741035728959,1.8110144,577.51,575.64,0.34743937]
[1741035728960,1.8110144,577.51,575.71,0.31900083]
[1741035729161,0.34630835,577.52,575.72,0.31900083]
[1741035729362,0.34630835,577.52,575.64,0.34743937]
[1741035729363,0.34630835,577.52,575.73,0.31900083]
[1741035729563,1.81144647,577.5,575.74,0.31900083]
[1741035729759,1.81144647,577.5,575.75,0.31900083]
[1741035729958,1.81144647,577.5,575.65,0.31900083]
[1741035730158,1.81144647,577.5,575.66,0.31900083]
[1741035730359,1.81144647,577.5,575.65,0.31900083]
[1741035730558,1.81144647,577.5,575.66,0.31900083]
[1741035730762,1.81144647,577.5,575.65,0.31900083]
[1741035731063,1.81144647,577.5,575.66,0.31900083]
[1741035731259,1.81144647,577.5,575.65,0.31900083]
[1741035731458,1.81144647,577.5,575.66,0.31900083]
[1741035731767,0.34633234,577.48,575.67,0.31900083]
[1741035731963,0.34633234,577.48,575.64,0.31900083]
[1741035732259,0.34633234,577.48,575.65,0.31900083]
[1741035732463,0.34633234,577.48,575.66,0.31900083]
[1741035732664,0.34633234,577.48,575.67,0.31900083]
[1741035732863,0.34633234,577.48,575.68,0.31900083]
[1741035733062,0.34633234,577.48,575.64,0.31900083]
[1741035733261,0.34633234,577.48,575.65,0.31900083]
[1741035733462,0.34633234,577.48,575.66,0.31900083]
[1741035733660,0.34633234,577.48,575.67,0.31900083]
[1741035733860,0.34633234,577.48,575.68,0.31900083]
[1741035734064,0.34633234,577.48,575.63,1.81144647]
[1741035734065,0.34633234,577.48,575.69,0.31900083]
[1741035734264,0.34633234,577.48,575.7,0.31900083]
[1741035734466,0.34633234,577.48,575.71,0.31900083]
[1741035734667,0.34633234,577.48,575.7,1.907]
[1741035734668,0.34633234,577.48,575.72,0.31900083]
[1741035734867,0.34633234,577.48,575.73,0.31900083]
[1741035735067,0.34633234,577.48,575.74,0.31900083]
[1741035735269,0.34633234,577.48,575.71,0.31900083]
[1741035735468,1.81161149,577.47,575.72,0.31900083]
[1741035735668,1.81161149,577.47,575.73,0.31900083]
[1741035735669,0.34635033,577.45,575.73,0.31900083]
[1741035735864,0.34635033,577.45,575.7,1.907]
[1741035735865,0.34635033,577.45,575.71,0.31900083]
[1741035736068,0.34635033,577.45,575.72,0.31900083]
[1741035736264,0.34635033,577.45,575.7,1.907]
[1741035736265,0.34635033,577.45,575.71,0.31900083]
[1741035736469,0.34635033,577.45,575.7,1.907]
[1741035736672,0.34635033,577.45,575.71,0.31908284]
[1741035738368,1.81198881,577.44,575.75,1.29429039]
[1741035738585,0.34636832,577.42,575.76,0.31908284]
[1741035741975,0.34636832,577.42,575.75,1.29429039]
[1741035742171,1.62064417,577.42,575.76,0.31922916]
[1741035742375,1.62064417,577.42,575.71,0.31925072]
[1741035742571,2.49825558,577.42,575.7,1.907]
[1741035742775,2.49825558,577.42,575.71,0.3192334]
[1741035743578,2.49825558,577.42,575.7,1.907]
[1741035744178,2.50683308,577.42,575.7,1.907]
[1741035744380,4.1578322,577.42,575.7,1.907]
[1741035744581,2.53718803,577.41,575.7,1.907]
[1741035744775,1.27427585,577.33,575.7,1.907]
[1741035745175,0.34643432,577.31,575.7,1.907]
[1741035745780,0.34643432,577.31,575.71,0.319233]
[1741035745980,2.88362235,577.31,575.71,0.319233]
[1741035747374,1.81198094,577.3,575.71,0.319233]
[1741035747579,0.34645232,577.28,575.71,0.319233]
[1741035750481,1.81229549,577.27,575.7,1.907]
[1741035750680,0.34647033,577.25,575.7,1.907]
[1741035753582,1.81231122,577.24,575.7,1.907]
[1741035753779,0.34648834,577.22,575.7,1.907]
[1741035757579,0.34648834,577.22,575.45,1.29429039]
[1741035758981,0.34648834,577.22,575.22,1.8131453]
[1741035759376,0.34648834,577.22,575.23,0.31947142]
[1741035760583,0.34648834,577.22,575.24,1.855]
[1741035760779,0.34648834,577.22,575.25,0.31947142]
[1741035761383,0.34648834,577.22,575.24,1.855]
[1741035762487,1.8130351,577.21,575.24,1.855]
[1741035762886,3.48832872,577.21,575.24,1.855]
[1741035763083,2.56227079,577.2,575.25,0.31939876]
[1741035763283,0.88697717,577.2,575.25,0.31939876]
[1741035763485,0.34651235,577.18,575.25,0.31939876]
[1741035764287,1.6207882,577.18,575.25,0.31939876]
[1741035765483,1.81301148,577.17,575.25,0.31939876]
[1741035765683,0.34653036,577.15,575.25,0.31939876]
[1741035766383,1.62080621,577.15,575.25,0.31939876]
[1741035766586,2.50778338,577.15,575.25,0.31939876]
[1741035768591,1.81324765,577.14,575.25,0.31939876]
[1741035768793,0.34654837,577.12,575.24,3.66824765]
[1741035769292,0.34654837,577.12,575.25,0.31942298]
[1741035769590,0.34654837,577.12,575.26,0.31941904]
[1741035769784,0.34654837,577.12,575.25,0.31942074]
[1741035769985,0.34654837,577.12,575.24,3.66824765]
[1741035770188,0.34654837,577.12,575.25,0.3194204]
[1741035771491,1.81306658,577.11,575.25,0.3194204]
[1741035771684,0.34656639,577.09,575.25,0.3194204]
[1741035774590,1.81320828,577.08,575.25,0.3194204]
[1741035775486,0.34658441,577.06,575.25,0.3194204]
[1741035778792,0.34658441,577.06,575.26,0.3194204]
[1741035778993,0.34658441,577.06,575.27,0.3194204]
[1741035779190,0.34658441,577.06,575.28,0.3194204]
[1741035779493,0.34658441,577.06,575.29,0.3194204]
[1741035779687,0.34658441,577.06,575.3,0.3194204]
[1741035779995,0.34658441,577.06,575.31,0.3194204]
[1741035780193,0.34658441,577.06,575.26,1.29429039]
[1741035780194,0.34658441,577.06,575.27,0.3194204]
[1741035780387,0.34658441,577.06,575.28,0.3194204]
[1741035780588,1.81294852,577.05,575.27,2.13236892]
[1741035780892,0.34660242,577.03,575.28,0.3194204]
[1741035782195,0.34660242,577.03,575.44,1.29429039]
[1741035782394,0.34660242,577.03,575.45,0.3194204]
[1741035782792,0.34660242,577.03,575.46,1.556]
[1741035782993,0.34660242,577.03,575.47,0.3194204]
[1741035783390,1.81267309,577.02,575.47,0.3194204]
[1741035783593,0.34662045,577.0,575.47,0.3194204]
[1741035784496,0.34662045,577.0,575.6,1.29429039]
[1741035784691,0.34662045,577.0,575.61,0.3194204]
[1741035785396,0.34662045,577.0,575.6,1.29429039]
[1741035786691,1.81266522,576.99,575.6,1.29429039]
[1741035787198,1.81266522,576.99,575.5,1.29429039]
[1741035789300,0.34662045,577.0,575.5,1.29429039]
[1741035789498,0.34662045,577.0,575.46,1.556]
[1741035791644,1.81321616,576.99,575.46,1.556]
[1741035792199,4.38585233,576.99,575.46,1.556]
[1741035792400,0.88965661,576.98,575.46,1.556]
[1741035792600,2.57263617,576.98,575.46,1.556]
[1741035793802,0.34664448,576.96,575.46,1.556]
[1741035797912,1.27427585,576.88,575.46,1.556]
[1741035798113,0.34670457,576.86,575.46,1.556]
[1741035798808,1.81356263,576.85,575.46,1.556]
[1741035799002,0.3467226,576.83,575.46,1.556]
[1741035801508,1.8136414,576.82,575.46,1.556]
[1741035801699,0.34674063,576.8,575.46,1.556]
[1741035804003,1.62101648,576.8,575.46,1.556]
[1741035804209,2.51236623,576.8,575.46,1.556]
[1741035804403,1.81386197,576.79,575.46,1.556]
[1741035804604,0.34675867,576.77,575.46,1.556]
[1741035807605,2.91509945,576.77,575.46,1.556]
[1741035807808,1.23502137,576.77,574.95,1.29429039]
[1741035809304,1.23585298,576.77,574.95,1.29429039]
[1741035810609,1.81452401,576.76,574.68,1.29429039]
[1741035810813,1.81452401,576.76,574.78,1.81452401]
[1741035811006,0.34677671,576.74,574.68,1.29429039]
[1741035812211,0.34677671,576.74,574.69,1.81478423]
[1741035813314,0.34677671,576.74,574.36,1.29429039]
[1741035813511,1.81480789,576.73,574.69,1.81480789]
[1741035813711,0.34684286,576.63,574.36,1.29429039]
[1741035813912,0.34684286,576.63,574.37,0.31971697]
[1741035814313,0.34684286,576.63,574.38,1.174]
[1741035814517,0.34684286,576.63,574.39,0.31971697]
[1741035815117,0.34684286,576.63,574.4,1.81509975]
[1741035815318,0.34684286,576.63,574.41,0.31971697]
[1741035816419,1.81508397,576.62,574.4,1.81508397]
[1741035816621,0.34691505,576.51,574.41,0.31971697]
[1741035818824,0.34691505,576.51,574.42,0.31968125]
[1741035819021,0.34691505,576.51,574.43,0.31968125]
[1741035819224,0.34691505,576.51,574.44,0.31968125]
[1741035819425,0.34691505,576.51,574.41,0.31968125]
[1741035819624,0.34691505,576.51,574.42,0.31968125]
[1741035819825,0.34691505,576.51,574.43,0.31968125]
[1741035820019,0.34691505,576.51,574.44,0.31968125]
[1741035820219,0.34691505,576.51,574.45,0.31968125]
[1741035820423,0.34691505,576.51,574.46,0.31968125]
[1741035820618,0.34691505,576.51,574.41,0.31968125]
[1741035820822,0.34691505,576.51,574.42,0.31968125]
[1741035821020,0.34691505,576.51,574.43,0.31968125]
[1741035821223,0.34691505,576.51,574.44,0.31968125]
[1741035821426,0.34691505,576.51,574.41,0.31968125]
[1741035821627,0.34691505,576.51,574.42,0.31968125]
[1741035821827,0.34691505,576.51,574.43,0.31968125]
[1741035822026,0.34691505,576.51,574.41,0.31968125]
[1741035822225,0.34691505,576.51,574.42,0.31968125]
[1741035822421,0.34691505,576.51,574.43,0.31968125]
[1741035822626,1.81493409,576.5,574.44,0.31968125]
[1741035822920,0.34698126,576.4,574.61,1.29429039]
[1741035823124,0.34698126,576.4,574.62,0.31968125]
[1741035824427,0.34698126,576.4,574.63,0.31968125]
[1741035824627,0.34698126,576.4,574.64,0.31968125]
[1741035824825,0.34698126,576.4,574.65,0.31968125]
[1741035825026,0.34698126,576.4,574.66,0.31968125]
[1741035825226,0.34698126,576.4,574.61,1.29429039]
[1741035825227,0.34698126,576.4,574.67,0.31968125]
[1741035825525,1.81465806,576.39,574.68,0.31968125]
[1741035825729,1.81465806,576.39,574.69,0.31968125]
[1741035825933,0.34699932,576.37,574.7,0.31968125]
[1741035826134,0.34699932,576.37,574.96,1.29429039]
[1741035826431,0.34699932,576.37,574.97,0.31968125]
[1741035828330,0.34699932,576.37,574.96,1.29429039]
[1741035828536,0.34699932,576.37,574.97,0.31952026]
[1741035828938,0.34699932,576.37,575.12,1.29429039]
[1741035829135,0.34699932,576.37,575.13,0.31952026]
[1741035830738,0.34699932,576.37,575.12,1.29429039]
[1741035830935,0.34699932,576.37,575.13,0.31953407]
[1741035831332,0.34699932,576.37,575.2,1.29429039]
[1741035833336,1.81383834,576.36,575.2,1.29429039]
[1741035833535,0.34701738,576.34,575.14,1.712]
[1741035840548,1.81442941,576.33,575.14,1.712]
[1741035840761,0.34703544,576.31,575.14,1.712]
[1741035843451,1.81476057,576.3,575.14,1.712]
[1741035843858,0.34705351,576.28,575.14,1.712]
[1741035846456,1.81498142,576.27,575.14,1.712]
[1741035847857,0.34707158,576.25,575.14,1.712]
[1741035849453,1.81500509,576.24,575.14,1.712]
[1741035850353,1.81500509,576.24,574.8,1.29429039]
[1741035850552,0.34708965,576.22,574.8,1.29429039]
[1741035850759,0.34708965,576.22,574.66,3.10929548]
[1741035850952,0.34708965,576.22,574.67,0.31974116]
[1741035852755,1.81510764,576.21,574.67,0.31974116]
[1741035852953,0.34710772,576.19,574.67,0.31974116]
[1741035853651,0.34710772,576.19,574.7,1.29429039]
[1741035853852,0.34710772,576.19,574.71,0.31974116]
[1741035854251,0.34710772,576.19,574.7,1.29429039]
[1741035855458,1.81557324,576.18,574.7,1.29429039]
[1741035855660,0.34712579,576.16,574.7,1.29429039]
[1741035857159,0.34712579,576.16,574.57,1.81557324]
[1741035857353,0.34712579,576.16,574.58,0.319818]
[1741035858453,0.34712579,576.16,574.57,1.81557324]
[1741035858958,0.34712579,576.16,574.55,1.29429039]
[1741035860959,0.34712579,576.16,574.49,1.29429039]
[1741035861459,1.81599169,576.15,574.49,1.29429039]
[1741035861660,0.34714387,576.13,574.49,1.29429039]
[1741035862858,0.34714387,576.13,574.45,1.81589693]
[1741035864359,0.34714387,576.13,573.84,1.29429039]
[1741035864560,0.34714387,576.13,573.85,0.66838998]
[1741035864760,0.34714387,576.13,573.86,0.31986685]
[1741035864761,1.81592851,576.12,573.86,0.31986685]
[1741035864960,0.34721619,576.01,573.87,0.34851098]
[1741035865256,0.34721619,576.01,573.88,0.31986685]
[1741035865655,0.34721619,576.01,574.01,1.29429039]
[1741035865862,0.34721619,576.01,574.02,0.31986685]
[1741035866658,0.34721619,576.01,574.01,1.29429039]
[1741035866861,0.34721619,576.01,574.02,0.31988004]
[1741035867757,0.34721619,576.01,574.22,1.29429039]
[1741035867962,0.34721619,576.01,574.23,0.31988004]
[1741035870566,0.34721619,576.01,574.29,1.29429039]
[1741035870764,0.34721619,576.01,574.3,0.31988004]
[1741035871659,0.34721619,576.01,574.31,0.31993325]
[1741035871960,0.34721619,576.01,574.32,0.31993325]
[1741035872165,0.34721619,576.01,574.3,0.31993325]
[1741035872365,0.34721619,576.01,574.31,0.31993325]
[1741035872565,0.34721619,576.01,574.3,0.31993325]
[1741035872761,0.34721619,576.01,574.31,0.31993325]
[1741035872961,0.34721619,576.01,574.34,1.29429039]
[1741035875068,1.81663158,576.0,574.34,1.29429039]
[1741035875868,1.81663158,576.0,574.11,1.29429039]
[1741035876261,1.81663158,576.0,574.12,0.32005913]
[1741035876765,0.34723427,575.98,574.12,0.32005913]
[1741035877764,0.34723427,575.98,574.13,0.32003715]
[1741035877971,0.34723427,575.98,574.14,0.32003715]
[1741035878163,0.34723427,575.98,574.15,0.32003715]
[1741035878368,0.34723427,575.98,574.16,0.32003715]
[1741035878569,0.34723427,575.98,574.12,0.32003715]
[1741035878764,0.34723427,575.98,574.13,0.32003715]
[1741035879065,0.34723427,575.98,573.96,1.81663158]
[1741035879066,0.34723427,575.98,574.14,0.32003715]
[1741035879271,0.34723427,575.98,573.97,0.32003715]
[1741035879471,0.34723427,575.98,573.98,0.32003715]
[1741035879667,1.8170347,575.97,573.99,0.32003715]
[1741035879971,0.34725236,575.95,574.0,0.32003715]
[1741035880171,0.34725236,575.95,574.01,0.32003715]
[1741035880467,0.34725236,575.95,574.02,0.32003715]
[1741035880674,0.34725236,575.95,574.03,0.32003715]
[1741035880872,0.34725236,575.95,573.97,0.32003715]
[1741035881067,0.34725236,575.95,573.98,0.32003715]
[1741035881266,1.8170347,575.97,573.99,0.32003715]